bitfinex-derivatives/quotes_ETHF0:USTF0_20250103
["timestamp","ask_amount","ask_price","bid_price","bid_amount"]
[1735938550853,0.27734,3607.3,3607.2,0.86144]
[1735938551359,3.48513,3607.4,3607.3,0.27734]
[1735938551561,0.27731,3607.7,3607.6,0.27731]
[1735938551759,0.2773,3607.8,3607.7,0.2773]
[1735938551952,3.2545746,3608.1,3607.4,3.2078]
[1735938552153,0.27728,3608.1,3608.0,0.27727]
[1735938552455,41.07727,3608.2,3608.1,0.27727]
[1735938552658,0.27728,3608.1,3608.0,0.27728]
[1735938553051,40.8,3608.2,3607.9,0.612]
[1735938553258,40.8,3608.2,3608.1,0.27727]
[1735938553456,0.27724,3608.6,3608.5,0.27724]
[1735938553957,41.07724,3608.6,3608.5,0.27724]
[1735938554360,0.27725,3608.5,3608.4,0.27725]
[1735938557166,40.8,3608.7,3608.3,0.6328]
[1735938557167,0.27724,3608.6,3608.5,0.27724]
[1735938557864,0.27725,3608.5,3608.4,0.27725]
[1735938559265,0.27725,3608.5,3608.4,0.89445]
[1735938559469,0.27725,3608.5,3608.4,0.6172]
[1735938559666,0.27725,3608.5,3608.4,0.89445]
[1735938560366,0.27725,3608.5,3608.4,0.6172]
[1735938561576,0.27725,3608.5,3608.4,0.89445]
[1735938561860,0.27725,3608.5,3608.4,0.6172]
[1735938562361,0.27725,3608.5,3608.4,1.2296]
[1735938563561,0.27725,3608.5,3608.4,0.6172]
[1735938563964,3.48505,3608.5,3607.9,7.15112827]
[1735938564269,0.27727,3608.2,3608.1,0.646]
[1735938571174,3.48507,3608.2,3608.1,0.646]
[1735938573170,3.5318046,3608.7,3608.6,0.27723]
[1735938573969,2.2515746,3608.7,3608.6,0.27723]
[1735938574176,0.27723,3608.8,3608.7,0.27721]
[1735938575866,0.27722,3608.9,3608.8,0.27721]
[1735938578868,0.27721,3609.0,3608.9,0.2772]
[1735938579770,0.27719,3609.3,3609.2,0.27718]
[1735938579976,0.27717,3609.5,3609.4,0.27717]
[1735938581778,0.2772,3609.2,3609.1,0.27719]
[1735938581981,0.27719,3609.3,3609.2,0.27718]
[1735938582482,3.2078,3609.6,3609.0,3.2078]
[1735938582679,0.2772,3609.1,3609.0,3.2078]
[1735938583078,6.0022043,3609.6,3609.0,3.2078]
[1735938583274,3.2078,3609.6,3609.0,3.2078]
[1735938583481,3.2078,3609.6,3609.0,5.3092843]
[1735938583782,0.2772,3609.2,3609.1,0.27719]
[1735938584374,0.2772,3609.1,3609.0,5.5864843]
[1735938584778,0.2772,3609.1,3609.0,5.3092843]
[1735938585083,0.2772,3609.1,3609.0,3.2078]
[1735938586886,41.0772,3609.1,3609.0,3.2078]
[1735938588186,0.27721,3608.9,3608.8,0.94472]
[1735938589284,0.27721,3608.9,3608.8,0.6675]
[1735938589684,0.27721,3608.9,3608.8,0.8891]
[1735938591090,0.27721,3608.9,3608.8,1.16632]
[1735938593291,2.1014843,3609.9,3608.8,0.8891]
[1735938593489,0.27719,3609.3,3609.2,0.27718]
[1735938594184,0.69291,3609.6,3608.8,0.8891]
[1735938594387,0.2772,3609.1,3609.0,0.27719]
[1735938597094,0.27719,3609.2,3609.1,0.27718]
[1735938598796,0.27719,3609.2,3609.1,0.92358]
[1735938599694,0.2772,3609.1,3609.0,3.2078]
[1735938600289,0.2772,3609.1,3609.0,3.485]
[1735938601097,0.27719,3609.3,3609.2,0.27718]
[1735938601289,0.69291,3609.6,3609.0,3.2078]
[1735938601490,0.2772,3609.1,3609.0,3.2078]
[1735938601996,0.2772,3609.1,3609.0,3.485]
[1735938602196,0.6514,3609.3,3608.8,8.08442827]
[1735938602403,0.27721,3608.9,3608.8,7.41692827]
[1735938602698,0.27721,3608.9,3608.8,6.76072827]
[1735938602900,0.27721,3608.9,3608.8,0.2216]
[1735938603602,0.27721,3608.9,3608.8,0.49882]
[1735938603892,0.27721,3608.9,3608.8,0.2216]
[1735938604693,0.27721,3608.9,3608.5,6.53912827]
[1735938604694,0.27723,3608.6,3608.5,6.53912827]
[1735938605600,0.27728,3608.0,3607.9,6.81640827]
[1735938606197,0.27728,3608.0,3607.9,6.53912827]
[1735938606804,0.27728,3608.0,3607.9,0.27729]
[1735938607997,0.69316,3608.3,3607.6,11.06692827]
[1735938608305,0.2773,3607.7,3607.6,11.34423827]
[1735938609505,0.2773,3607.7,3607.6,10.17272483]
[1735938610805,0.2773,3607.7,3607.6,10.54001483]
[1735938611009,0.2773,3607.7,3607.6,5.44971]
[1735938611499,0.2773,3607.7,3607.6,5.1724]
[1735938611701,0.2773,3607.7,3607.6,5.44971]
[1735938613101,0.6614,3607.9,3607.6,5.1724]
[1735938613306,0.2773,3607.8,3607.7,0.2773]
[1735938613807,0.6614,3607.9,3607.6,10.54017255]
[1735938614104,0.2773,3607.7,3607.6,10.54017255]
[1735938614697,0.2773,3607.7,3607.6,5.1724]
[1735938614897,0.2773,3607.7,3607.6,5.44971]
[1735938615604,0.2773,3607.8,3607.7,0.2773]
[1735938619104,0.2773,3607.8,3607.6,5.1724]
[1735938619310,0.2773,3607.7,3607.6,5.44971]
[1735938620006,0.2773,3607.7,3607.6,3.2078]
[1735938620508,0.6385,3608.1,3607.6,3.2078]
[1735938620701,0.2773,3607.9,3607.8,0.27729]
[1735938621910,0.2773,3607.8,3607.7,0.2773]
[1735938622407,1.33171,3608.1,3607.6,3.4295]
[1735938622608,0.2773,3607.7,3607.6,3.70681]
[1735938623406,0.2773,3607.7,3607.6,3.4295]
[1735938625103,0.2773,3607.7,3607.6,0.2217]
[1735938625304,0.27735,3607.1,3607.0,6.53912827]
[1735938626909,41.07735,3607.1,3607.0,6.53912827]
[1735938627110,0.2774,3606.4,3606.3,7.65743827]
[1735938628509,0.2774,3606.4,3606.3,1.11831]
[1735938632204,0.2774,3606.4,3606.3,0.8409]
[1735938632712,0.27741,3606.3,3606.1,0.8446]
[1735938632910,2.3788943,3606.3,3606.2,3.2078]
[1735938633306,2.3788943,3606.3,3606.2,3.4296]
[1735938633907,2.3788943,3606.3,3606.2,0.2218]
[1735938635409,5.5866943,3606.3,3606.2,1e-05]
[1735938635812,3.48521,3606.3,3606.2,1e-05]
[1735938636414,3.48521,3606.3,3606.2,0.87481]
[1735938636621,3.2078,3607.1,3606.2,0.87481]
[1735938636812,0.27735,3607.2,3607.1,0.27735]
[1735938637021,3.23972722,3607.5,3607.0,1.7514]
[1735938637213,0.27735,3607.1,3607.0,2.02875]
[1735938639121,0.27735,3607.1,3607.0,1.7514]
[1735938639314,0.27735,3607.1,3607.0,2.02876]
[1735938639516,0.27735,3607.1,3607.0,1.7514]
[1735938640023,0.27735,3607.1,3607.0,2.02876]
[1735938642126,0.27735,3607.1,3607.0,1.7514]
[1735938643227,0.27735,3607.1,3607.0,5.23656]
[1735938645430,0.27735,3607.1,3607.0,4.9592]
[1735938646932,0.27735,3607.1,3607.0,5.23656]
[1735938647137,0.27735,3607.1,3607.0,4.9592]
[1735938647536,0.27735,3607.1,3607.0,5.23656]
[1735938648543,0.27735,3607.1,3607.0,4.9592]
[1735938651337,3.2078,3607.8,3607.0,4.9592]
[1735938651534,3.2078,3607.8,3607.4,0.27732]
[1735938651535,0.27733,3607.5,3607.4,0.27732]
[1735938651739,3.2078,3607.8,3607.7,0.2773]
[1735938651740,0.27731,3607.8,3607.7,0.2773]
[1735938651941,0.27731,3607.7,3607.6,0.27731]
[1735938653547,0.27732,3607.6,3607.5,0.27731]
[1735938654343,0.27734,3607.2,3607.1,6.81646827]
[1735938654647,0.27734,3607.4,3607.3,0.27732]
[1735938655547,0.27735,3607.2,3607.1,0.27734]
[1735938655937,0.27735,3607.1,3607.0,4.9592]
[1735938657041,0.8525,3607.5,3606.6,6.53912827]
[1735938657042,2.1014843,3607.3,3606.6,6.53912827]
[1735938657243,0.27738,3606.7,3606.6,6.53912827]
[1735938658856,0.2774,3606.5,3606.4,0.2774]
[1735938662048,2.37503,3606.9,3606.3,1.5399]
[1735938662255,0.27736,3607.0,3606.9,0.27735]
[1735938662556,0.27738,3606.8,3606.7,0.27737]
[1735938662855,0.69335,3607.3,3606.6,3.2078]
[1735938662856,0.27737,3606.9,3606.8,0.27736]
[1735938663454,0.27738,3606.7,3606.4,0.2774]
[1735938663651,0.2774,3606.5,3606.4,0.2774]
[1735938663854,0.2774,3606.5,3606.4,6.81652827]
[1735938665059,0.2774,3606.5,3606.4,0.2774]
[1735938665449,0.69344,3606.8,3606.4,0.2774]
[1735938665650,0.2774,3606.5,3606.4,0.2774]
[1735938666157,0.2774,3606.5,3606.4,4.63016288]
[1735938668956,0.27739,3606.6,3606.5,0.27739]
[1735938672069,0.27739,3606.6,3606.5,4.63015288]
[1735938674471,0.27739,3606.6,3606.5,4.85195288]
[1735938674662,0.27739,3606.6,3606.5,4.57456288]
[1735938675070,0.27739,3606.6,3606.5,4.85196288]
[1735938675663,0.27739,3606.6,3606.5,0.4992]
[1735938676866,0.8336,3606.9,3606.5,0.4992]
[1735938676867,0.8336,3606.9,3606.5,4.57456288]
[1735938677072,1.06854,3607.2,3607.1,0.27735]
[1735938677269,3.51706722,3607.3,3607.2,0.27734]
[1735938677974,0.27734,3607.3,3607.2,0.27734]
[1735938683278,7.93201722,3607.6,3607.1,4.35276288]
[1735938683477,0.27734,3607.2,3607.1,4.63011288]
[1735938683865,3.23972722,3607.6,3607.5,0.27732]
[1735938684170,3.23972722,3607.6,3607.5,5.5866043]
[1735938684479,4.3464531,3607.8,3607.7,0.2773]
[1735938684480,3.23972722,3607.8,3607.7,0.2773]
[1735938686181,0.27729,3607.9,3607.8,0.2773]
[1735938689178,0.69316,3608.3,3608.2,0.27726]
[1735938689179,0.27727,3608.3,3608.2,0.27726]
[1735938691273,3.2078,3608.5,3607.8,5.04791395]
[1735938691475,0.27728,3608.1,3608.0,0.27727]
[1735938691874,0.2773,3607.8,3607.7,4.35467395]
[1735938692074,0.2773,3607.8,3607.7,4.63197395]
[1735938692478,0.2773,3607.8,3607.7,4.35467395]
[1735938692672,0.2773,3607.8,3607.7,4.63197395]
[1735938693167,0.2773,3607.7,3607.6,9.97437395]
[1735938693372,3.4851,3607.7,3607.6,4.35467395]
[1735938693679,10.5865843,3607.7,3607.6,3.79486395]
[1735938693876,10.5865843,3607.7,3607.6,3.95e-06]
[1735938693877,9.02060764,3607.7,3607.6,3.95e-06]
[1735938694177,0.27732,3607.5,3607.4,6.53912827]
[1735938694378,0.27732,3607.5,3606.6,0.8535]
[1735938694379,0.27736,3607.0,3606.9,6.53912827]
[1735938695382,0.27737,3606.8,3606.7,0.27738]
[1735938696781,0.27737,3606.8,3606.7,0.49918]
[1735938699378,3.90115,3607.3,3606.7,0.2218]
[1735938699577,0.27734,3607.3,3607.2,0.27733]
[1735938699881,0.27735,3607.2,3607.1,0.27734]
[1735938700880,0.27735,3607.2,3607.1,1.13364]
[1735938706583,3.4851,3607.9,3607.8,0.2773]
[1735938706786,0.2773,3607.7,3607.6,0.27731]
[1735938707590,0.27733,3607.5,3607.4,0.27731]
[1735938708179,0.27732,3607.6,3607.5,0.2773]
[1735938709788,3.2078,3607.9,3607.3,3.9039]
[1735938709985,0.27733,3607.5,3607.4,0.27732]
[1735938711083,3.2078,3607.9,3607.3,3.9039]
[1735938711287,0.27733,3607.4,3607.3,0.6961]
[1735938711685,0.27733,3607.4,3607.3,0.97343]
[1735938712190,0.27733,3607.4,3607.3,0.6961]
[1735938712485,0.27733,3607.4,3607.3,0.97343]
[1735938712887,0.27733,3607.4,3607.3,0.6961]
[1735938713088,0.27736,3607.0,3606.9,9.74692827]
[1735938713790,41.07736,3607.0,3606.9,9.74692827]
[1735938713996,41.07736,3607.0,3606.9,3.2078]
[1735938714391,41.07736,3607.0,3606.9,3.48516]
[1735938715487,0.27736,3607.2,3607.1,0.27734]
[1735938718200,0.69332,3607.4,3606.9,3.2078]
[1735938718394,0.27736,3607.1,3607.0,0.27735]
[1735938719398,0.27737,3606.9,3606.8,0.27736]
[1735938723503,0.27734,3607.3,3607.2,0.27733]
[1735938723896,3.23972722,3607.6,3607.1,0.69338]
[1735938724093,3.51704722,3607.6,3607.5,0.27732]
[1735938724403,0.27732,3607.6,3607.5,0.27732]
[1735938725505,3.23972722,3607.7,3607.6,0.27731]
[1735938725800,3.2078,3608.1,3607.8,0.2773]
[1735938726005,0.27728,3608.0,3607.9,1.64459]
[1735938726191,0.27728,3608.0,3607.9,1.3673]
[1735938726400,0.27728,3608.0,3607.9,1.64459]
[1735938727006,0.27728,3608.0,3607.9,1.3673]
[1735938727304,0.27728,3608.0,3607.9,1.64459]
[1735938727602,0.27728,3608.0,3607.9,1.3673]
[1735938727909,0.27728,3608.0,3607.9,1.64459]
[1735938728409,0.27731,3607.7,3607.6,0.27731]
[1735938729702,0.27731,3607.7,3607.6,0.49131]
[1735938730804,0.27731,3607.7,3607.6,0.214]
[1735938733009,0.27731,3607.7,3607.6,0.49131]
[1735938735510,0.27731,3607.7,3607.6,0.214]
[1735938737311,0.27731,3607.7,3607.6,0.49131]
[1735938742315,0.27731,3607.7,3607.6,5.74602866]
[1735938742511,0.2773,3607.9,3607.8,0.27728]
[1735938751821,0.27729,3608.1,3608.0,0.27727]
[1735938752123,6.72479722,3608.3,3608.2,0.27726]
[1735938753920,3.48507,3608.3,3608.2,0.27726]
[1735938754517,3.2078,3608.3,3608.1,2.1944]
[1735938754713,0.27726,3608.2,3608.1,2.47167]
[1735938754917,3.2078,3608.3,3607.7,6.53912827]
[1735938755117,3.2078,3608.3,3607.7,7.98452827]
[1735938755118,0.2773,3607.8,3607.7,7.98452827]
[1735938755427,0.2773,3607.8,3607.7,8.26182827]
[1735938756318,0.2773,3607.8,3607.7,1.7227]
[1735938756523,0.2773,3607.8,3607.7,1.4454]
[1735938757017,0.2773,3607.8,3607.7,1.7227]
[1735938757618,0.2773,3607.8,3607.7,1.4454]
[1735938758623,0.2773,3607.8,3607.7,1.7227]
[1735938759421,0.2773,3607.8,3607.7,1.4454]
[1735938760025,0.2773,3607.8,3607.7,1.7227]
[1735938762124,0.2773,3607.8,3607.7,1.4454]
[1735938763233,0.2773,3607.8,3607.7,1.7227]
[1735938765832,0.2773,3607.8,3607.7,6.98042687]
[1735938766223,0.2773,3607.8,3607.7,6.70312687]
[1735938768431,0.2773,3607.8,3607.7,13.24225514]
[1735938770632,0.2773,3607.8,3607.7,6.70312687]
[1735938773832,0.2773,3607.8,3607.7,13.24953336]
[1735938775231,3.23972722,3607.9,3607.7,13.24953336]
[1735938775433,3.51702722,3607.9,3607.8,0.2773]
[1735938776433,0.2773,3607.9,3607.8,11.80413336]
[1735938776641,0.2773,3607.9,3607.8,12.08143336]
[1735938776837,0.2773,3607.9,3607.8,11.80413336]
[1735938777039,0.2773,3607.9,3607.8,12.08143336]
[1735938777745,0.2773,3607.9,3607.8,11.80413336]
[1735938778534,0.2773,3607.9,3607.8,12.08143336]
[1735938778938,3.51702722,3607.9,3607.8,11.80413336]
[1735938782836,3.51702722,3607.9,3607.8,12.08143336]
[1735938783545,0.2773,3607.9,3607.8,5.53502687]
[1735938785036,0.2773,3607.9,3607.8,14.19879796]
[1735938787546,0.2773,3607.9,3607.8,24.7153925]
[1735938788648,3.23972722,3608.1,3607.8,26.53672685]
[1735938788949,0.27729,3608.0,3607.9,0.27728]
[1735938789136,3.23972722,3608.1,3607.9,0.27728]
[1735938789447,0.27729,3608.0,3607.9,0.27728]
[1735938790450,4.3464531,3608.3,3607.9,5.69321]
[1735938790649,0.31698032,3608.3,3608.2,5.58369435]
[1735938790948,0.27723,3608.7,3608.5,0.27724]
[1735938791349,0.27723,3608.7,3608.2,6.68769435]
[1735938791547,0.27723,3608.7,3608.6,3.48503]
[1735938792558,0.27723,3608.7,3608.6,5.58366435]
[1735938792749,0.27722,3608.8,3608.7,0.27721]
[1735938793657,0.27722,3608.8,3608.7,6.38680155]
[1735938793961,0.2772,3609.2,3609.1,0.27719]
[1735938795356,4.5539,3609.5,3609.0,2.09863435]
[1735938795662,0.27719,3609.3,3609.2,0.27718]
[1735938797161,4.5539,3609.5,3609.0,2.09863435]
[1735938797356,0.2772,3609.2,3609.1,0.27719]
[1735938797760,4.5539,3609.5,3609.0,2.09863435]
[1735938798060,0.2772,3609.1,3609.0,2.37583435]
[1735938798958,0.69291,3609.6,3609.2,0.27718]
[1735938798959,0.27719,3609.3,3609.2,0.27718]
[1735938799359,44.0078,3610.0,3609.0,5.30643435]
[1735938799360,3.90063,3610.0,3609.0,5.30643435]
[1735938799559,0.27716,3609.7,3609.6,0.27715]
[1735938799754,0.27716,3609.7,3609.6,1.65075]
[1735938800558,0.27716,3609.7,3609.6,1.3736]
[1735938800964,0.27716,3609.7,3609.6,1.65076]
[1735938802068,0.27716,3609.7,3609.6,1.3736]
[1735938803270,0.27716,3609.7,3609.6,0.6942]
[1735938803467,0.27718,3609.4,3609.3,0.27717]
[1735938803770,0.27718,3609.4,3609.3,0.96437]
[1735938804270,0.27718,3609.4,3609.3,0.6872]
[1735938810771,0.27718,3609.4,3609.1,0.6722]
[1735938810772,0.2772,3609.1,3609.0,3.485]
[1735938810968,0.2772,3609.1,3609.0,3.2078]
[1735938811280,0.704,3609.5,3608.6,6.53617975]
[1735938811281,0.27723,3608.7,3608.6,6.53617975]
[1735938811576,0.27723,3608.7,3608.3,1.104]
[1735938811577,0.27723,3608.6,3608.5,6.53617975]
[1735938813275,0.27727,3608.2,3608.1,4.14347]
[1735938814881,0.6842,3608.5,3608.1,4.14347]
[1735938815081,0.27727,3608.2,3608.1,4.14347]
[1735938817780,0.27721,3609.1,3609.0,0.2772]
[1735938818278,0.7007,3609.5,3608.9,3.2078]
[1735938818279,0.2772,3609.0,3608.9,3.485]
[1735938820482,0.2772,3609.1,3609.0,0.27719]
[1735938821883,0.2772,3609.0,3608.9,3.48501]
[1735938822088,0.27722,3608.8,3608.7,0.27722]
[1735938822278,0.6646,3608.9,3608.5,4.34095238]
[1735938822476,0.27723,3608.6,3608.5,4.61819238]
[1735938822677,0.27723,3608.6,3608.5,0.27724]
[1735938823871,0.27723,3608.6,3608.3,2.011]
[1735938823872,0.6801,3608.7,3608.3,2.011]
[1735938824078,0.6801,3608.7,3608.6,0.27723]
[1735938824582,0.95733,3608.7,3608.6,0.27723]
[1735938824783,0.6801,3608.7,3608.6,0.27723]
[1735938824980,0.95733,3608.7,3608.6,0.27723]
[1735938825776,0.6801,3608.7,3608.6,3.48503]
[1735938827286,0.95733,3608.7,3608.6,3.48503]
[1735938827480,0.6801,3608.7,3608.6,3.48503]
[1735938827784,0.95733,3608.7,3608.6,3.48503]
[1735938828380,0.95733,3608.7,3608.6,0.27723]
[1735938829288,0.27723,3608.6,3608.5,4.6213139]
[1735938830083,0.27723,3608.6,3608.5,0.27724]
[1735938836582,0.27725,3608.4,3608.3,5.7070739]
[1735938836787,0.27725,3608.4,3608.3,5.0076739]
[1735938836986,0.27725,3608.4,3608.3,4.3440739]
[1735938837490,0.27726,3608.3,3608.2,4.3440739]
[1735938837685,4.14386,3608.3,3608.2,4.3440739]
[1735938838791,3.8666,3608.3,3607.9,5.3122539]
[1735938838992,0.27728,3608.0,3607.9,5.3122539]
[1735938839689,0.27728,3608.0,3607.9,4.3440739]
[1735938840083,5.96523435,3608.3,3607.8,4.6213639]
[1735938840284,3.8666,3608.3,3607.8,4.3440739]
[1735938840480,0.27728,3608.2,3608.1,0.27727]
[1735938841086,0.27728,3608.1,3608.0,0.27728]
[1735938841482,0.27728,3608.0,3607.9,3.9106]
[1735938841688,0.27728,3608.0,3607.9,0.98008]
[1735938843297,0.6588,3608.3,3607.7,4.3440739]
[1735938843496,0.2773,3607.8,3607.7,4.3440739]
[1735938843895,0.2773,3607.7,3607.6,5.9965839]
[1735938844190,0.2773,3607.9,3607.8,0.27729]
[1735938846188,0.7154,3608.0,3607.7,2.09863435]
[1735938846391,0.7154,3608.0,3607.6,5.7192739]
[1735938846593,0.2773,3607.7,3607.6,5.9965839]
[1735938847394,0.2773,3607.7,3607.6,7.05496882]
[1735938848495,0.2773,3607.7,3607.6,1.65251]
[1735938850399,0.2773,3607.7,3607.6,4.86031]
[1735938851503,0.7154,3608.0,3607.6,4.583]
[1735938851703,0.2773,3607.9,3607.8,0.27729]
[1735938852196,0.7154,3608.0,3607.7,0.2773]
[1735938852197,0.2773,3607.8,3607.7,0.2773]
[1735938852503,0.2773,3607.8,3607.7,4.62782445]
[1735938853602,0.2773,3607.8,3607.7,4.35052445]
[1735938853999,0.2773,3607.8,3607.7,0.2773]
[1735938854197,2.81403435,3608.0,3607.6,4.35052445]
[1735938854404,0.9594,3607.7,3607.6,4.35052445]
[1735938855498,0.27732,3607.5,3607.4,0.27732]
[1735938856305,0.27733,3607.4,3607.3,0.27733]
[1735938857401,0.27733,3607.4,3607.3,0.45693]
[1735938857704,0.27733,3607.4,3607.3,0.1796]
[1735938858603,2.37596435,3607.4,3607.3,0.1796]
[1735938862202,0.27738,3606.7,3606.6,4.35052445]
[1735938862711,0.27738,3606.7,3606.6,4.62791445]
[1735938862904,0.27738,3606.7,3606.6,0.27739]
[1735938863410,0.2774,3606.6,3606.5,0.27739]
[1735938864513,0.27738,3606.7,3606.6,0.27737]
[1735938866006,0.27738,3606.8,3606.7,0.27737]
[1735938885715,0.27738,3606.8,3606.7,3.48517]
[1735938885914,0.27738,3606.8,3606.7,3.2078]
[1735938886117,0.27739,3606.6,3606.5,4.35052445]
[1735938887728,0.2774,3606.5,3606.4,1.6267]
[1735938888323,0.2774,3606.5,3606.4,1.3493]
[1735938888523,0.2774,3606.5,3606.4,1.6267]
[1735938892121,0.85255006,3606.9,3606.8,0.27737]
[1735938892323,0.57518006,3607.0,3606.7,3.90124]
[1735938892524,0.27736,3607.0,3606.9,0.27737]
[1735938892915,1.28308006,3607.2,3606.7,3.90124]
[1735938893122,7.53969073,3607.6,3607.1,2.09863435]
[1735938893320,4.33189073,3607.6,3607.3,0.27733]
[1735938893923,4.60920073,3607.6,3607.3,0.27733]
[1735938894322,0.27731,3607.6,3607.3,6.51611085]
[1735938894537,0.27731,3607.6,3607.5,3.48512]
[1735938895422,0.2773,3607.8,3607.7,0.2773]
[1735938895631,0.27729,3607.9,3607.8,0.27729]
[1735938895823,0.27728,3608.0,3607.9,0.27728]
[1735938899027,0.6661,3608.1,3607.6,4.35381588]
[1735938899227,3.45793435,3608.1,3607.6,4.35381588]
[1735938899533,0.2773,3607.7,3607.6,4.63112588]
[1735938900332,0.2773,3607.7,3607.6,4.35381588]
[1735938900732,0.9196,3607.7,3607.6,4.35381588]
[1735938901838,0.27734,3607.2,3607.1,4.63116588]
[1735938903039,0.27734,3607.2,3607.1,0.27735]
[1735938903442,0.27735,3607.1,3607.0,4.35381588]
[1735938903634,0.27735,3607.1,3607.0,4.63117588]
[1735938905735,0.27735,3607.1,3607.0,4.35381588]
[1735938906142,0.27735,3607.1,3607.0,4.63117588]
[1735938907645,0.27735,3607.1,3607.0,0.27736]
[1735938908147,1.34474,3607.4,3606.9,4.35381588]
[1735938908448,0.27736,3607.0,3606.9,4.63117588]
[1735938908650,0.27736,3607.0,3606.9,0.27736]
[1735938909747,0.27736,3607.0,3606.9,5.67613037]
[1735938910851,0.27736,3607.0,3606.9,12.19224122]
[1735938912049,0.27736,3607.0,3606.9,5.67613037]
[1735938913352,0.27736,3607.0,3606.9,5.67614037]
[1735938913648,0.27736,3607.0,3606.9,5.39877037]
[1735938915844,0.27736,3607.0,3606.9,4.63358605]
[1735938916148,3.89098023,3607.7,3606.9,5.00412605]
[1735938916450,0.27734,3607.4,3607.3,0.27733]
[1735938917242,0.27734,3607.4,3607.3,4.63355605]
[1735938919053,0.27734,3607.4,3607.3,12.21029121]
[1735938920064,0.27734,3607.4,3607.3,11.93296121]
[1735938921556,0.27733,3607.3,3607.2,7.56304029]
[1735938925252,0.27733,3607.3,3607.2,3.2078]
[1735938928258,0.27733,3607.3,3607.2,4.35524029]
[1735938929961,2.37596435,3607.3,3607.2,4.35524029]
[1735938930659,0.27735,3607.1,3607.0,4.35524029]
[1735938934065,1.3892,3607.2,3606.9,4.35524029]
[1735938934267,0.27736,3607.0,3606.9,4.35524029]
[1735938934663,2.37599435,3607.0,3606.9,4.35524029]
[1735938935665,0.27737,3606.9,3606.8,4.35524029]
[1735938936461,2.09863435,3607.0,3606.8,5.39091659]
[1735938936665,0.27737,3606.9,3606.8,5.39091659]
[1735938937867,0.27737,3606.9,3606.8,5.66828659]
[1735938938066,0.27736,3607.0,3606.9,0.27736]
[1735938939070,0.27736,3607.0,3606.9,12.20230644]
[1735938940261,0.27736,3607.0,3606.9,12.20231644]
[1735938941060,0.27736,3607.0,3606.9,11.92494644]
[1735938941268,0.27736,3607.0,3606.9,12.20231644]
[1735938941773,0.27736,3607.0,3606.9,11.20231644]
[1735938944579,0.27736,3607.0,3606.9,4.66828659]
[1735938947475,0.27736,3607.0,3606.9,4.39091659]
[1735938949183,0.27736,3607.0,3606.9,4.66828659]
[1735938949987,0.27735,3607.2,3607.1,0.27734]
[1735938950183,3.52602023,3607.3,3607.2,0.27734]
[1735938950485,3.24868023,3607.3,3607.2,0.93384]
[1735938950686,0.27733,3607.4,3607.3,0.27733]
[1735938952191,0.27733,3607.4,3607.3,10.94652655]
[1735938952988,0.27732,3607.6,3607.5,0.27731]
[1735938953185,0.27732,3607.6,3607.5,3.48511]
[1735938955186,0.27732,3607.6,3607.5,3.2078]
[1735938955384,0.27732,3607.6,3607.5,3.48512]
[1735938956891,1.4352,3607.8,3607.5,3.2078]
[1735938957091,0.27731,3607.7,3607.6,0.9312]
[1735938959488,0.27731,3607.7,3607.6,7.46821127]
[1735938959995,0.2773,3607.8,3607.7,0.27729]
[1735938960293,0.2773,3607.8,3607.7,0.99079]
[1735938961194,0.2773,3607.8,3607.7,7.52780127]
[1735938962501,0.2773,3607.8,3607.7,12.82977644]
[1735938962996,3.24868023,3608.3,3607.7,12.82977644]
[1735938963298,3.52595023,3608.3,3608.2,0.27726]
[1735938964094,0.27727,3608.3,3608.2,0.27726]
[1735938964494,0.27727,3608.3,3608.2,0.6881]
[1735938964697,0.27727,3608.3,3608.2,0.96536]
[1735938965201,0.27727,3608.3,3608.2,5.32190222]
[1735938966298,0.27727,3608.3,3608.2,0.96536]
[1735938966604,0.27725,3608.5,3608.4,0.27724]
[1735938966798,0.27725,3608.5,3608.4,3.48504]
[1735938967201,0.98824,3608.6,3608.5,0.27724]
[1735938967404,0.98824,3608.6,3608.5,0.94394]
[1735938967606,0.27723,3608.8,3608.7,0.27722]
[1735938968003,0.27722,3608.9,3608.8,0.27721]
[1735938969810,1.64061,3609.0,3608.9,0.27721]
[1735938970410,1.3634,3609.0,3608.9,0.27721]
[1735938970607,1.3634,3609.0,3608.9,3.48501]
[1735938970810,1.6406,3609.0,3608.9,3.48501]
[1735938971801,0.9305,3609.0,3608.9,3.48501]
[1735938972204,0.6533,3609.0,3608.9,3.48501]
[1735938972407,0.2772,3609.1,3609.0,0.2772]
[1735938973308,0.27719,3609.2,3609.1,0.27719]
[1735938975819,0.2772,3609.1,3609.0,0.2772]
[1735938976211,1.3657,3609.3,3608.9,3.2078]
[1735938976412,0.2772,3609.0,3608.9,3.2078]
[1735938976619,0.2772,3609.0,3608.4,4.35654222]
[1735938976620,2.09863435,3609.0,3608.4,4.35654222]
[1735938976812,4.59376,3609.2,3608.4,4.35654222]
[1735938976813,0.27724,3608.5,3608.4,4.35654222]
[1735938977314,42.1704,3608.5,3608.2,0.27726]
[1735938977516,0.27726,3608.3,3608.2,0.27726]
[1735938978021,1.3704,3608.5,3608.0,3.2078]
[1735938978213,0.27725,3608.4,3608.3,0.27725]
[1735938978414,1.3704,3608.5,3608.1,2.09863435]
[1735938978614,1.64764,3608.5,3608.4,3.48505]
[1735938979618,1.64764,3608.5,3608.4,3.2078]
[1735938979818,0.69307,3608.8,3608.4,3.2078]
[1735938980019,0.27726,3608.3,3608.2,0.27726]
[1735938985823,0.27725,3608.5,3608.4,0.27724]
[1735938987826,0.27723,3608.8,3608.7,0.27721]
[1735938988227,1.3772,3609.1,3608.6,3.2078]
[1735938988421,0.27721,3609.0,3608.9,0.2772]
[1735938991431,0.27721,3608.9,3608.8,0.99551]
[1735938991633,0.27721,3609.0,3608.9,0.2772]